Cogmind - Beta 14 @@@ ROGUE MODE // 2024.08.26 @ 22:17:55 Player: Olafz Result: Destroyed by G-47 Trooper with Particle Gun Performance ------------- Evolutions (2) 1000 Regions Visited (6) 1200 Robots Destroyed (0) 0 Value Destroyed (0) 0 Prototype IDs (23) 460 Alien Tech Used (0) 0 Bonus (570) 570 TOTAL SCORE: 3230 Bonus ------- Pacifist 270 Aligned with FarCom 300 Cogmind --------- Core Integrity 0/550 Matter 280/300 Energy 98/100 System Corruption 4% Temperature Cool (9) Movement Core (50) Location -8/Storage Parts ------- > --- POWER (1) -------- (None) > --- PROPULSION (2) --- (None) > --- UTILITY (6) ------ Hacking Suite PSU Rigger > --- WEAPON (2) ------- (None) > --- INVENTORY (5) ---- Weight Redist. System Advanced Weight Redist. System Terrain Scanner Core Analyzer Corruption Screen Peak State ------------ > --- POWER ------------ (None) > --- PROPULSION ------- (None) > --- UTILITY ---------- Hacking Suite PSU Rigger > --- WEAPON ----------- (None) > --- INVENTORY -------- Weight Redist. System Advanced Weight Redist. System Terrain Scanner Core Analyzer Corruption Screen [Rating: 12] Favorites ----------- Power None Propulsion None Utility PSU Rigger Device PSU Rigger Hackware Hacking Suite Weapon None Build | -11 -10 -10 -10 -9 -8 -8 ------- Run | Yrd Mat Min Exi Min Mat Sto Slots Evolved 4 | . . . . . 4 . Power . | . . . . . . . Propulsion . | . . . . . . . Utility 4 | . . . . . 4 . Weapon . | . . . . . . . Parts Attached 3 | . 1 . 1 . 1 . Power . | . . . . . . . Engine . | . . . . . . . Core . | . . . . . . . Reactor . | . . . . . . . Propulsion . | . . . . . . . Treads . | . . . . . . . Leg . | . . . . . . . Wheel . | . . . . . . . Hover . | . . . . . . . Flight . | . . . . . . . Utility 3 | . 1 . 1 . 1 . Device 2 | . 1 . 1 . . . Storage . | . . . . . . . Processor . | . . . . . . . Hackware 1 | . . . . . 1 . Protection . | . . . . . . . Artifact . | . . . . . . . Weapon . | . . . . . . . Energy Gun . | . . . . . . . Energy Cannon . | . . . . . . . Ballistic Gun . | . . . . . . . Ballistic Cannon . | . . . . . . . Launcher . | . . . . . . . Special Weapon . | . . . . . . . Impact Weapon . | . . . . . . . Slashing Weapon . | . . . . . . . Piercing Weapon . | . . . . . . . Special Melee Weapon . | . . . . . . . Unidentified Prototypes . | . . . . . . . Parts Lost 1 | . . . . . 1 . Power . | . . . . . . . Propulsion . | . . . . . . . Utility 1 | . . . . . 1 . Weapon . | . . . . . . . Highest Loss Streak 1 | . . . . . 1 . To Critical Strikes . | . . . . . . . Average Slot Usage (%) 21 | . 7 14 21 28 16 18 Device 19 | . 7 14 21 28 13 9 Hackware 1 | . . . . . 3 9 Peak Build Rating 12 | . 1 1 9 10 12 12 Average Rating 7 | . . 1 4 9 10 12 On Entrance 4 | . . 1 1 9 10 12 Naked Turns 29 | . 29 . . . . . Heaviest Build 3 | . 1 1 3 3 3 2 Greatest Support 3 | 3 3 3 3 3 3 3 Greatest Overweight (x) . | . . . . . . . Average Overweight (x) . | . . . . . . . Largest Inventory Capacity 5 | 5 5 5 5 5 5 5 Average Capacity 5 | 5 5 5 5 5 5 5 Most Carried 5 | . 1 1 1 4 5 5 Average Carried 2 | . . 1 1 2 4 5 Final Capacity 5 | 5 5 5 5 5 5 5 Final Carried 5 | . 1 1 1 4 5 5 Class Distribution -------------------- 56% | Mutant 43% | Scout Dominant Class ---------------- Mutant | -10/Materials Mutant | -10/Mines Mutant | -10/Exiles Scout | -9/Mines Mutant | -8/Materials Mutant | -8/Storage Resources | -11 -10 -10 -10 -9 -8 -8 ----------- Run | Yrd Mat Min Exi Min Mat Sto Matter Collected 194 | 108 . . . 86 . . Remotely . | . . . . . . . Salvage Created . | . . . . . . . Parts . | . . . . . . . Haulers Intercepted . | . . . . . . . Recyclers Shooed . | . . . . . . . Parts Field Recycled . | . . . . . . . Retrieved Matter . | . . . . . . . Parts Self-Destructed . | . . . . . . . Prevented . | . . . . . . . Kills | -11 -10 -10 -10 -9 -8 -8 ------- Run | Yrd Mat Min Exi Min Mat Sto Combat Hostiles Destroyed . | . . . . . . . Classes Destroyed . | . . . . . . . Best Kill Streak . | . . . . . . . Combat Bots Only . | . . . . . . . Max Kills in Single Turn . | . . . . . . . Gunslinging . | . . . . . . . Exploded . | . . . . . . . Melee . | . . . . . . . Uniques/NPCs Destroyed . | . . . . . . . Combat | -11 -10 -10 -10 -9 -8 -8 -------- Run | Yrd Mat Min Exi Min Mat Sto Hostile Shots Fired 122 | . 5 . . 19 56 42 Missed 43 | . 3 . . 3 24 13 Damage Taken 765 | . 21 . . 126 314 304 Core 675 | . 21 . . 102 259 293 Absorbed by Shields 41 | . . . . . . 41 Core Remaining (%) 75 | 100 . . . 50 . . Volleys Fired . | . . . . . . . Largest . | . . . . . . . Hottest . | . . . . . . . Shots Fired . | . . . . . . . Gun . | . . . . . . . Cannon . | . . . . . . . Launcher . | . . . . . . . Special . | . . . . . . . Kinetic . | . . . . . . . Thermal . | . . . . . . . Explosive . | . . . . . . . Electromagnetic . | . . . . . . . Robot Hit Streak . | . . . . . . . Robot Miss Streak . | . . . . . . . Penetration Max . | . . . . . . . Secondary Targets . | . . . . . . . Shots Hit Robots . | . . . . . . . Core Hits 1 | . . . . . 1 . Critical Kills . | . . . . . . . Critical Parts Destroyed . | . . . . . . . Critical Strikes . | . . . . . . . Melee Attacks . | . . . . . . . Impact . | . . . . . . . Slashing . | . . . . . . . Piercing . | . . . . . . . Sneak Attacks . | . . . . . . . Combat Hostiles . | . . . . . . . Follow-up Attacks . | . . . . . . . Damage Inflicted 34 | . . . . 2 32 . Guns . | . . . . . . . Cannons . | . . . . . . . Explosions . | . . . . . . . Melee . | . . . . . . . Ramming 34 | . . . . 2 32 . Kinetic . | . . . . . . . Thermal . | . . . . . . . Explosive . | . . . . . . . Electromagnetic . | . . . . . . . Impact . | . . . . . . . Slashing . | . . . . . . . Piercing . | . . . . . . . Highest Corruption 4 | . . . . . 4 4 Average Corruption 4 | . . . . . 4 4 Corruption Purged . | . . . . . . . Corruption Blocked . | . . . . . . . Overload Shots . | . . . . . . . Overflow Damage . | . . . . . . . Projectiles . | . . . . . . . Explosions . | . . . . . . . Melee . | . . . . . . . Knockbacks . | . . . . . . . Impact . | . . . . . . . Kinetic . | . . . . . . . Secondary . | . . . . . . . Self-Inflicted Damage 17 | . . . . 1 16 . Shots . | . . . . . . . Rammed 6 | . . . . 1 5 . Targets Rammed 6 | . . . . 1 5 . Kicked . | . . . . . . . Crushed . | . . . . . . . Highest Temperature . | . . . . . . . Average Temperature . | . . . . . . . Received Heat Transfer 188 | . 12 . . . 72 104 Siege Activations . | . . . . . . . Robots Corrupted . | . . . . . . . Combat Hostiles . | . . . . . . . Parts Fried . | . . . . . . . Impact Corruptions . | . . . . . . . Robots Melted . | . . . . . . . Combat Hostiles . | . . . . . . . Parts Melted . | . . . . . . . Heat Transferred . | . . . . . . . Parts Sabotaged . | . . . . . . . Parts Stolen . | . . . . . . . Parts Stripped . | . . . . . . . Power Chain Reactions . | . . . . . . . Alert | -11 -10 -10 -10 -9 -8 -8 ------- Run | Yrd Mat Min Exi Min Mat Sto Peak Influence 97 | . 15 5 . 45 97 68 Initial 53 | . . 5 . . 17 53 Average 18 | . 6 5 . 1 41 57 Maximum Alert Level . | . . . . . . . Low Security (%) 100 | 100 100 100 . 100 100 100 Level 1 . | . . . . . . . Level 2 . | . . . . . . . Level 3 . | . . . . . . . Level 4 . | . . . . . . . Level 5 . | . . . . . . . High Security . | . . . . . . . Max Security . | . . . . . . . Squads Dispatched 2 | . . . . . 1 1 Investigation . | . . . . . . . Extermination . | . . . . . . . Reinforcement 2 | . . . . . 1 1 Assault . | . . . . . . . Garrison . | . . . . . . . Intercept . | . . . . . . . Searches Triggered . | . . . . . . . Construction Impeded . | . . . . . . . Haulers Reinforced . | . . . . . . . Active Scanning Responses . | . . . . . . . Cargo Convoy Interrupts . | . . . . . . . Stealth | -11 -10 -10 -10 -9 -8 -8 --------- Run | Yrd Mat Min Exi Min Mat Sto Distress Signals 3 | . 1 . . . 1 1 Communications Jammed . | . . . . . . . Distress Signals . | . . . . . . . Times Spotted 32 | . 2 . . 5 16 9 Peak Tracking Total 15 | . 2 . . 4 15 9 Tactical Retreats 3 | . . . . 1 2 . Traps | -11 -10 -10 -10 -9 -8 -8 ------- Run | Yrd Mat Min Exi Min Mat Sto Traps Triggered 1 | . . . . . . 1 Indirectly . | . . . . . . . Trap Hack Attempts . | . . . . . . . Triggered . | . . . . . . . Disarmed . | . . . . . . . Reprogrammed . | . . . . . . . Reused . | . . . . . . . Traps Extracted . | . . . . . . . Installed . | . . . . . . . Triggered . | . . . . . . . Objects Rigged 1 | . . . . . 1 . Machines | -11 -10 -10 -10 -9 -8 -8 ---------- Run | Yrd Mat Min Exi Min Mat Sto Machines Disabled . | . . . . . . . Max in Single Turn . | . . . . . . . Machines Repaired . | . . . . . . . Machines Dismantled . | . . . . . . . Machines Sabotaged . | . . . . . . . Overloaded Fab Kills . | . . . . . . . Hacking | -11 -10 -10 -10 -9 -8 -8 --------- Run | Yrd Mat Min Exi Min Mat Sto Machines Accessed 2 | . . . 1 1 . . Terminals . | . . . . . . . Fabricators . | . . . . . . . Repair Stations . | . . . . . . . Recycling Units . | . . . . . . . Scanalyzers . | . . . . . . . Garrison Access . | . . . . . . . Total Hacks 2 | . . . 1 1 . . Successful 2 | . . . 1 1 . . Failed . | . . . . . . . Catastrophic . | . . . . . . . Database Lockouts . | . . . . . . . Manual 1 | . . . 1 . . . Terminals . | . . . . . . . Fabricators . | . . . . . . . Repair Stations . | . . . . . . . Recycling Units . | . . . . . . . Scanalyzers . | . . . . . . . Garrison Access . | . . . . . . . Terminal Hacks 2 | . . . 1 1 . . Open Door 1 | . . . . 1 . . Derelict Proto ID Bank 1 | . . . 1 . . . Fabricator Hacks . | . . . . . . . Repair Station Hacks . | . . . . . . . Recycling Unit Hacks . | . . . . . . . Scanalyzer . | . . . . . . . Garrison Access Hacks . | . . . . . . . Unauthorized Hacks . | . . . . . . . Terminals . | . . . . . . . Fabricators . | . . . . . . . Repair Stations . | . . . . . . . Recycling Units . | . . . . . . . Scanalyzers . | . . . . . . . Garrison Access . | . . . . . . . Data Cores Recovered . | . . . . . . . Used . | . . . . . . . Hacking Detections . | . . . . . . . Full Trace Events . | . . . . . . . Feedback Events . | . . . . . . . Feedback Blocked . | . . . . . . . Robot Schematics Acquired . | . . . . . . . Robots Built . | . . . . . . . Authchips . | . . . . . . . Time . | . . . . . . . Total Robot Build Rating . | . . . . . . . Part Schematics Acquired . | . . . . . . . Parts Built . | . . . . . . . Authchips . | . . . . . . . Time . | . . . . . . . Total Part Build Rating . | . . . . . . . Parts Repaired . | . . . . . . . Time . | . . . . . . . Parts Recycled . | . . . . . . . Recycled Matter . | . . . . . . . Retrieved Matter . | . . . . . . . Retrieved Components . | . . . . . . . Parts Scanalyzed . | . . . . . . . Part Schematics Acquired . | . . . . . . . Parts Damaged . | . . . . . . . Bothacking | -11 -10 -10 -10 -9 -8 -8 ------------ Run | Yrd Mat Min Exi Min Mat Sto Used RIF Installer . | . . . . . . . Robots Hacked . | . . . . . . . Non-combat . | . . . . . . . Combat . | . . . . . . . Robot Hacks Applied . | . . . . . . . Relay Couplers Released . | . . . . . . . Fabnet Peak Effective % . | . . . . . . . Robots Rewired . | . . . . . . . Allies Hacked . | . . . . . . . Hacks Repelled . | . . . . . . . Allies | -11 -10 -10 -10 -9 -8 -8 -------- Run | Yrd Mat Min Exi Min Mat Sto Total Allies . | . . . . . . . Largest Group . | . . . . . . . Highest-Rated Group . | . . . . . . . Highest-Rated Ally . | . . . . . . . Total Orders . | . . . . . . . Ally Attacks . | . . . . . . . Total Damage . | . . . . . . . Kills . | . . . . . . . Allies Corrupted . | . . . . . . . Allies Melted . | . . . . . . . Intel | -11 -10 -10 -10 -9 -8 -8 ------- Run | Yrd Mat Min Exi Min Mat Sto Robot Analysis Total . | . . . . . . . Derelict Logs Recovered 2 | . . . . 2 . . Drone Launches . | . . . . . . . Drone Recoveries . | . . . . . . . Exploration | -11 -10 -10 -10 -9 -8 -8 ------------- Run | Yrd Mat Min Exi Min Mat Sto Turns Passed 443 | 9 42 9 106 166 59 52 Spaces Moved 809 | 18 79 17 208 300 101 86 Core 809 | 18 79 17 208 300 101 86 Treads . | . . . . . . . Legs . | . . . . . . . Wheels . | . . . . . . . Hover . | . . . . . . . Flight . | . . . . . . . Fastest Speed 50 | 50 50 50 50 50 50 50 Average Speed 50 | 50 50 50 50 50 50 50 Slowest Speed 50 | 50 50 50 50 50 50 50 Overloaded Moves . | . . . . . . . Propulsion Burnouts . | . . . . . . . Robots Hopped . | . . . . . . . Cave-ins Triggered . | . . . . . . . Exploration Rate (%) 32 | 2 39 6 60 67 17 36 Regions Visited 6 Branch Regions 4 Pre-discovered Areas 2 | . . . . 2 . . Known Exits Taken . | . . . . . . . Unknown Exits Taken 6 | 1 1 1 1 1 1 . Scrap Searched 2 | . . . . 2 . . Spaces Dug . | . . . . . . . Terrain Destroyed . | . . . . . . . Melee . | . . . . . . . Projectile . | . . . . . . . AOE . | . . . . . . . Terrain Rammed . | . . . . . . . Walls Destroyed . | . . . . . . . Machines Disabled . | . . . . . . . Actions | -11 -10 -10 -10 -9 -8 -8 --------- Run | Yrd Mat Min Exi Min Mat Sto Total 839 | 17 80 16 208 315 108 95 Wait 12 | . . . . 12 . . Move 803 | 17 78 16 207 299 100 86 Hop . | . . . . . . . Pick Up 5 | . 1 . . 3 1 . Fast Attach 3 | . 1 . 1 . 1 . Attach . | . . . . . . . Detach . | . . . . . . . Swap . | . . . . . . . Drop . | . . . . . . . Fire . | . . . . . . . Melee . | . . . . . . . Ram 6 | . . . . 1 5 . Kick . | . . . . . . . Crush . | . . . . . . . Escape Stasis 9 | . . . . . . 9 Rewire . | . . . . . . . Trap 1 | . . . . . 1 . Miscellaneous . | . . . . . . . Route ------- -11/Scrapyard -10/Materials -10/Mines -10/Exiles -9/Mines -8/Materials -8/Storage History --------- Turn | Location | Event 3 | -11/Scrapyard | Discovered new exit (range 15) 10 | -11/Scrapyard | Entered Materials 42 | -10/Materials | Discovered new exit (range 15) 52 | -10/Materials | Entered Mines 58 | -10/Mines | Deemed a non-threat by the Exiles lab entrance 58 | -10/Mines | Discovered new exit (range 5) 61 | -10/Mines | Entered Exiles 74 | -10/Exiles | Met 8R-AWN 82 | -10/Exiles | Met EX-HEX 96 | -10/Exiles | Met EX-BIN 102 | -10/Exiles | Aligned with FarCom system 102 | -10/Exiles | Given EX-Vault access code 116 | -10/Exiles | Opened EX-Vault 118 | -10/Exiles | Found PSU Rigger 130 | -10/Exiles | Warned to stay clear of 0b10 Research branches 145 | -10/Exiles | Met EX-DEC 163 | -10/Exiles | Discovered new exit (range 10) 167 | -10/Exiles | Left Exiles lab with PSU Rigger 167 | -10/Exiles | Entered Mines 174 | -9/Mines | Learned location of Zion (-7) 184 | -9/Mines | Found a hidden stash of uninstalled traps 215 | -9/Mines | Met a Derelict who couldn't figure out how to use a Trap Extractor 274 | -9/Mines | Discovered new exit (range 14) 333 | -9/Mines | Entered Materials 333 | -8/Materials | Evolved 4 slots: Utility x4 385 | -8/Materials | Discovered new exit (range 16) 392 | -8/Materials | Entered Storage 399 | -8/Storage | Core integrity fell below 50% 440 | -8/Storage | Core integrity fell below 20% 444 | -8/Storage | Destroyed by G-47 Trooper with Particle Gun Last Messages --------------- K-01 Serf collects debris. W-25 Informer sends out distress signal. K-01 Serf collects debris. Triggered Stasis Trap. A bubble of rippling energy engulfs the area. Field strength at 94. Field strength at 88. K-01 Serf collects debris. Field strength at 77. Field strength at 69. ALERT: Hostiles spotted, dispatching reinforcements to Terminal S013. Field strength at 63. Field strength at 46. Field strength at 38. Field strength at 30. Critical hit (Burn: +27). Field strength at 16. Field strength at 4. Stasis field depleted. K-01 Serf collects debris. Map ----- +----------------------------------------------------+ | | | | | | | | | | | | | | | | | | | | | | | | | | | | | ???????????????????##############????????????????? | | ???????????????????# #????????????????? | | ???????????????????# #????????????????? | | ???????????????????# #????????????????? | | ???????????????????# ######???????????? | | ???????????????????# + #???????????? | | ???????????????????#######+###### ^ #???????????? | | ??????????############## ###?????????? | | ????????? g #?????????? | | ????????? ss """ +?????????? | | ????????? a g r g "G" #?????????? | | ????????? s @ " " #????????????? | | ???????????############## w #????????????? | | ????????????????????????# g #????????????? | | ????????????????????????# #????????????? | | ????????????????????????# #?########???? | | ????????????????????????# """ #?# ??? | | ????????????????????????+ """ #?# """ ??? | | ????????????????????????# """ ### """ #?? | | ????????????????????????# # """ #?? | | ????????????????????????# + #?? | | ????????????????????????# # """ #?? | | ?????????????????????# #######/###+# """ #?? | | ?????????????????????# ???# # """ ??? | | ?????????????????????# ???# # ??? | | ?????????????????????? ???# ####"T"#???? | | ?????????????????????# h ???# #???"""#???? | | ?????????????????????????????# #????##????? | | ?????????????????????????????# #??????????? | | ?????????????????????????????# #??????????? | | ????????????????????#????????# #??????????? | | ????????????????????# ??????# #??????????? | | ????????????????????# ??#######+######??????????? | | ????????????????????# ??# #????######?????? | | ????????????????????# ?# #?? #?????? | | ????????????????????# ?# "" # [ = #?????? | +----------------------------------------------------+ Best States ------------- Heat Dissipation 31 Energy Generation 5 Energy Capacity 100 Matter Stores 283 Matter Capacity 300 Sight Range 16 Terrain Scan Range 14 Terrain Scan Density 10 Evasion (%) 50 Offensive Hacking 10 Item Schematics ----------------- None Robot Schematics ------------------ None Fabricated ------------ Nothing Alien Tech Used ----------------- None Achievements -------------- None Challenges ------------ None Game ------ Seed IntegrityMassDevice Manual? 0 Play Time 00:06:19 Cumulative 253.1 hours Start 2024.08.26 @ 22:11:57 End 2024.08.26 @ 22:17:55 Sessions 1 Manual Loads 0 Difficulty Rogue Special Mode None Game No. 475 Rogue 473 Adventurer 2 Explorer 0 Win Type - Total 14 Types 11/0/1/2/0/0/0/0/0 Lore% 74 Gallery% 68 Achievement% 57 Wizard Run 0 Options --------- Layout 0 ASCII 0 Keyboard 1 Movement Numpad Keybinds 1 Fullscreen 2 Font 18/SmallcapsGlow Map View 76x50 Zoom Use 0% Tactical HUD 1 Map Filters NONE Filters NONE Steam 1 RUN: 93e23382-0671-414f-9e34-75fcbf1f4c35